bitfinex/quotes_BTCUSD_20240831
["timestamp","ask_amount","ask_price","bid_price","bid_amount"]
[1725066731636,0.92083297,59485.0,59484.0,0.23137432]
[1725066731871,0.68347997,59485.0,59484.0,0.23137432]
[1725066732099,0.589382,59485.0,59484.0,0.74377685]
[1725066732305,0.589382,59485.0,59484.0,0.8194772]
[1725066732516,0.589382,59485.0,59484.0,0.74377685]
[1725066732938,0.589382,59485.0,59484.0,0.81947717]
[1725066733381,0.589382,59485.0,59484.0,0.74376698]
[1725066733812,0.589382,59485.0,59484.0,0.81946731]
[1725066734016,0.589382,59485.0,59484.0,0.74376698]
[1725066735099,0.591382,59485.0,59484.0,0.74376698]
[1725066735306,0.68547997,59485.0,59484.0,0.81945923]
[1725066735514,0.68547997,59485.0,59484.0,0.3702998]
[1725066736155,0.68547997,59485.0,59484.0,0.81945571]
[1725066736562,0.68547997,59485.0,59484.0,0.81945831]
[1725066736780,0.68547997,59485.0,59484.0,0.44599616]
[1725066736996,0.68547997,59485.0,59484.0,0.81946094]
[1725066737223,0.68547997,59485.0,59484.0,0.44599616]
[1725066737422,0.591382,59485.0,59484.0,0.81946793]
[1725066737629,0.591382,59485.0,59484.0,0.7437635]
[1725066737835,0.591382,59485.0,59484.0,0.84469199]
[1725066737836,0.471706,59485.0,59484.0,0.84469199]
[1725066738050,0.471706,59485.0,59484.0,0.3702998]
[1725066738508,0.589382,59485.0,59484.0,0.3702998]
[1725066739332,0.589382,59485.0,59484.0,0.44599653]
[1725066739568,0.589382,59485.0,59484.0,0.3702998]
[1725066740173,0.118676,59485.0,59484.0,0.3702998]
[1725066740391,0.001,59485.0,59484.0,0.74373881]
[1725066740550,0.001819,59485.0,59484.0,0.74373881]
[1725066740748,0.001819,59485.0,59484.0,0.44599933]
[1725066740950,0.001819,59485.0,59484.0,0.81944232]
[1725066741174,0.001819,59485.0,59484.0,0.74374279]
[1725066741385,0.001819,59485.0,59484.0,0.74373716]
[1725066742443,0.001819,59485.0,59484.0,0.86141516]
[1725066743070,0.001819,59485.0,59484.0,1.33212916]
[1725066743288,0.02637243,59490.0,59489.0,0.353005]
[1725066743498,0.01759968,59500.0,59498.0,0.1894]
[1725066743699,0.01759968,59500.0,59499.0,0.20732875]
[1725066744328,0.01759968,59500.0,59499.0,0.1569]
[1725066744605,0.13524668,59500.0,59499.0,0.1569]
[1725066744828,0.117644,59502.0,59499.0,0.1894]
[1725066745014,0.235271,59506.0,59500.0,0.1569]
[1725066745229,0.117643,59502.0,59501.0,0.1894]
[1725066747118,0.14400955,59502.0,59501.0,0.1894]
[1725066747772,0.14400955,59502.0,59501.0,0.1904]
[1725066747976,0.38129555,59502.0,59501.0,0.006]
[1725066748182,0.37929555,59502.0,59501.0,0.1619]
[1725066748460,0.14600955,59502.0,59501.0,0.1619]
[1725066748665,0.38129555,59502.0,59501.0,0.1619]
[1725066748818,0.37929555,59502.0,59501.0,0.1619]
[1725066749212,0.38129555,59502.0,59501.0,0.1619]
[1725066749412,0.37929555,59502.0,59501.0,0.1619]
[1725066750982,0.38029555,59502.0,59501.0,0.1619]
[1725066751186,0.38129555,59502.0,59501.0,0.1619]
[1725066752229,0.37929555,59502.0,59501.0,0.1619]
[1725066752636,0.38011455,59502.0,59501.0,0.1619]
[1725066752769,0.47421252,59502.0,59501.0,0.1619]
[1725066753380,0.70949852,59502.0,59501.0,0.1619]
[1725066753603,0.71149852,59502.0,59501.0,0.1619]
[1725066753992,0.70949852,59502.0,59501.0,0.1619]
[1725066754192,0.71149852,59502.0,59501.0,0.1619]
[1725066754607,0.68513197,59502.0,59501.0,0.1619]
[1725066755915,0.589034,59502.0,59501.0,0.1619]
[1725066757187,0.591034,59502.0,59501.0,0.1619]
[1725066757403,0.589034,59502.0,59501.0,0.3587]
[1725066757939,0.61540082,59502.0,59501.0,0.3587]
[1725066758987,0.61740082,59502.0,59501.0,0.3587]
[1725066759190,0.61540082,59502.0,59501.0,0.3587]
[1725066760499,0.6330005,59502.0,59501.0,0.3587]
[1725066763802,0.6330005,59502.0,59501.0,0.3577]
[1725066765045,0.6330005,59502.0,59501.0,0.3527]
[1725066765233,0.6330005,59502.0,59501.0,0.3537]
[1725066765436,0.6330005,59502.0,59501.0,0.3587]
[1725066765842,0.6330005,59502.0,59501.0,0.3527]
[1725066766078,0.6330005,59502.0,59501.0,0.3677]
[1725066766665,0.6330005,59502.0,59501.0,0.3627]
[1725066766865,0.6350005,59502.0,59501.0,0.3587]
[1725066767038,0.6350005,59502.0,59501.0,0.1619]
[1725066767247,0.6350005,59502.0,59501.0,0.1729]
[1725066769328,0.6330005,59502.0,59501.0,0.1729]
[1725066769787,0.6350005,59502.0,59501.0,0.1729]
[1725066769906,0.6350005,59502.0,59501.0,0.1619]
[1725066770108,0.6350005,59502.0,59501.0,0.1559]
[1725066770312,0.6350005,59502.0,59501.0,0.1669]
[1725066771385,0.6350005,59502.0,59501.0,0.1729]
[1725066771596,0.6330005,59502.0,59501.0,0.1729]
[1725066771823,0.1624285,59502.0,59501.0,0.3631]
[1725066772489,0.0447855,59502.0,59501.0,0.3631]
[1725066772707,0.0447855,59502.0,59501.0,0.474745]
[1725066773125,0.0447855,59502.0,59501.0,0.473745]
[1725066773332,0.0447855,59502.0,59501.0,0.487745]
[1725066773770,0.0447855,59502.0,59501.0,0.473745]
[1725066774187,0.01841868,59502.0,59501.0,0.473745]
[1725066774435,0.01841868,59502.0,59501.0,0.463745]
[1725066774873,0.01841868,59502.0,59501.0,0.475745]
[1725066775287,0.000819,59502.0,59501.0,0.711035]
[1725066775490,0.000819,59502.0,59501.0,0.699035]
[1725066775698,0.000819,59502.0,59501.0,0.713035]
[1725066775895,0.000819,59502.0,59501.0,0.724035]
[1725066776323,0.000819,59502.0,59501.0,0.713035]
[1725066777649,0.02718497,59502.0,59501.0,0.713035]
[1725066778497,0.02718497,59502.0,59501.0,0.725035]
[1725066779153,0.02718497,59502.0,59501.0,0.713035]
[1725066779364,0.02718497,59502.0,59501.0,0.699035]
[1725066779567,0.02718497,59502.0,59501.0,0.711035]
[1725066779774,0.02718497,59502.0,59501.0,0.725035]
[1725066780214,0.02718497,59502.0,59501.0,0.713035]
[1725066781293,0.02718497,59502.0,59501.0,0.76340557]
[1725066781509,0.05018497,59502.0,59501.0,0.76340557]
[1725066781718,0.05018497,59502.0,59501.0,0.77740557]
[1725066783376,0.05018497,59502.0,59501.0,0.727035]
[1725066784320,0.05018497,59502.0,59501.0,0.80259085]
[1725066784963,0.05018497,59502.0,59501.0,0.80265237]
[1725066785411,0.05018497,59502.0,59501.0,1.17600019]
[1725066786432,0.05018497,59502.0,59501.0,1.10038282]
[1725066786639,0.01759968,59509.0,59501.0,0.98273782]
[1725066786864,0.117636,59506.0,59502.0,0.16806319]
[1725066787273,0.117636,59506.0,59503.0,0.05042119]
[1725066788430,0.117636,59506.0,59504.0,0.05042119]
[1725066789503,0.117636,59506.0,59505.0,0.05042119]
[1725066789726,0.140636,59506.0,59505.0,0.05042119]
[1725066789936,0.140636,59506.0,59505.0,0.05043103]
[1725066790828,0.140636,59506.0,59505.0,0.06443103]
[1725066792123,0.140636,59506.0,59505.0,0.07543103]
[1725066793028,0.375906,59506.0,59505.0,0.07543103]
[1725066793242,0.140636,59506.0,59505.0,0.07543103]
[1725066794944,0.140636,59506.0,59505.0,0.07543081]
[1725066796265,0.38010733,59506.0,59505.0,0.07543081]
[1725066796474,0.7114753,59506.0,59505.0,0.025]
[1725066796693,0.7114753,59506.0,59505.0,0.07543081]
[1725066796908,0.61737733,59506.0,59505.0,0.07543081]
[1725066797755,0.61737733,59506.0,59505.0,0.025]
[1725066798415,0.61537733,59506.0,59505.0,0.025]
[1725066798630,0.61819533,59506.0,59505.0,0.025]
[1725066803031,0.61619533,59506.0,59505.0,0.025]
[1725066803897,0.61819533,59506.0,59505.0,0.025]
[1725066805786,0.608423,59506.0,59505.0,0.025]
[1725066806941,0.371153,59506.0,59505.0,0.1827]
[1725066808098,0.371153,59506.0,59505.0,0.1938224]
[1725066809434,0.09451683,59506.0,59505.0,0.1938224]
[1725066809693,0.3255855,59506.0,59505.0,0.1938224]
[1725066810357,0.0903155,59506.0,59505.0,0.1938224]
[1725066810626,0.0903155,59506.0,59505.0,0.1947222]
[1725066811530,0.1133155,59506.0,59505.0,0.1947222]
[1725066814026,0.35478693,59506.0,59505.0,0.1947222]
[1725066814484,0.35478693,59506.0,59505.0,0.1837222]
[1725066814944,0.35478693,59506.0,59505.0,0.1917222]
[1725066815162,0.35478693,59506.0,59505.0,0.24220619]
[1725066815380,0.35478693,59506.0,59505.0,0.23420619]
[1725066815601,0.35478693,59506.0,59505.0,0.22820619]
[1725066815851,0.35478693,59506.0,59505.0,0.23920619]
[1725066816081,0.35478693,59506.0,59505.0,0.22820619]
[1725066816296,0.59005693,59506.0,59505.0,0.22820619]
[1725066816517,0.59005693,59506.0,59505.0,0.24020619]
[1725066818854,0.59005693,59506.0,59505.0,0.08250619]
[1725066819093,0.82532693,59506.0,59505.0,0.0320222]
[1725066820173,0.83287003,59506.0,59505.0,0.0320222]
[1725066821532,0.82332693,59506.0,59505.0,0.0320222]
[1725066822020,0.82332693,59506.0,59505.0,0.10774818]
[1725066822294,0.82332693,59506.0,59505.0,0.40537434]
[1725066822532,0.82532693,59506.0,59505.0,0.48109823]
[1725066824881,0.82532693,59506.0,59505.0,0.48109405]
[1725066825564,0.82532693,59506.0,59505.0,0.62609405]
[1725066826683,0.82332693,59506.0,59505.0,0.62609405]
[1725066826890,0.82332693,59506.0,59505.0,0.25274691]
[1725066828390,0.82332693,59506.0,59505.0,0.62609405]
[1725066829627,0.82332693,59506.0,59505.0,0.61409405]
[1725066829860,0.82332693,59506.0,59505.0,0.60609405]
[1725066830075,0.82332693,59506.0,59505.0,0.61709405]
[1725066830291,0.82332693,59506.0,59505.0,0.60909405]
[1725066830713,0.84969373,59506.0,59505.0,0.61409405]
[1725066831039,0.85169373,59506.0,59505.0,0.0220222]
[1725066831184,1.4938617,59506.0,59505.0,0.0220222]
[1725066831410,1.4938617,59506.0,59505.0,0.0088998]
[1725066831833,1.4918617,59506.0,59505.0,0.0118998]
[1725066832056,1.4938617,59506.0,59505.0,0.0118998]
[1725066832493,1.4938617,59506.0,59505.0,0.0038998]
[1725066832736,1.4938617,59506.0,59505.0,0.0118998]
[1725066833630,1.4918617,59506.0,59505.0,0.0008998]
[1725066833869,1.4918617,59506.0,59505.0,0.0078998]
[1725066835196,1.7291317,59506.0,59505.0,0.0078998]
[1725066835456,1.7311317,59506.0,59505.0,0.0078998]
[1725066835662,1.7291317,59506.0,59505.0,0.0078998]
[1725066836115,1.7291317,59506.0,59500.0,0.0008998]
[1725066836116,1.296095,59501.0,59500.0,0.0008998]
[1725066836327,5.19199297,59501.0,59500.0,0.0008998]
[1725066836564,5.75399297,59501.0,59500.0,0.0008998]
[1725066836776,5.77159265,59501.0,59500.0,0.0008998]
[1725066836989,5.03559265,59501.0,59500.0,0.0008998]
[1725066837197,4.91859265,59501.0,59500.0,0.0008998]
[1725066837468,4.11659265,59501.0,59500.0,0.0008998]
[1725066837678,2.61530265,59501.0,59500.0,0.0018998]
[1725066837885,2.61330265,59501.0,59500.0,0.0018998]
[1725066838092,2.61730265,59501.0,59500.0,0.0028998]
[1725066838715,1.51230265,59501.0,59500.0,0.0028998]
[1725066838924,2.26430265,59501.0,59500.0,0.0028998]
[1725066839339,2.26230265,59501.0,59500.0,0.0018998]
[1725066839553,2.26530265,59501.0,59500.0,0.0028998]
[1725066839795,2.26130265,59501.0,59500.0,0.0018998]
[1725066839986,2.26930265,59501.0,59500.0,0.0018998]
[1725066840239,2.26930265,59501.0,59500.0,0.0008998]
[1725066840455,2.27230265,59501.0,59500.0,0.0018998]
[1725066840663,2.27230265,59501.0,59500.0,0.0028998]
[1725066840664,2.28430265,59501.0,59500.0,0.0028998]
[1725066840867,2.25830265,59501.0,59500.0,0.0008998]
[1725066841301,2.25830265,59501.0,59500.0,0.0018998]
[1725066841504,2.27230265,59501.0,59500.0,0.0028998]
[1725066841916,1.77830265,59501.0,59500.0,0.0028998]
[1725066842123,1.78030265,59501.0,59500.0,0.0028998]
[1725066842436,1.78780295,59501.0,59500.0,0.0028998]
[1725066842645,1.22290498,59501.0,59500.0,0.1450998]
[1725066842861,1.31700295,59501.0,59500.0,0.1450998]
[1725066843067,1.30300295,59501.0,59500.0,0.1430998]
[1725066843279,1.31100295,59501.0,59500.0,0.1440998]
[1725066843499,1.31100295,59501.0,59500.0,0.15572256]
[1725066843698,1.31300295,59501.0,59500.0,0.15672256]
[1725066844113,1.31300295,59501.0,59500.0,0.15472256]
[1725066844114,1.30300295,59501.0,59500.0,0.15472256]
[1725066844309,0.97361498,59501.0,59500.0,0.15472256]
[1725066844579,1.07471295,59501.0,59500.0,0.15572256]
[1725066844962,1.28751295,59501.0,59500.0,0.01352256]
[1725066845399,1.52280295,59501.0,59500.0,0.0018998]
[1725066846803,1.52180295,59501.0,59500.0,0.0018998]
[1725066846992,1.52080295,59501.0,59500.0,0.0018998]
[1725066847442,1.52280295,59501.0,59500.0,0.0018998]
[1725066852349,1.49440295,59501.0,59500.0,0.0018998]
[1725066852817,1.31000295,59501.0,59500.0,0.0018998]
[1725066853791,1.07471295,59501.0,59500.0,0.0018998]
[1725066854379,1.07271295,59501.0,59500.0,0.01352256]
[1725066854555,1.07471295,59501.0,59500.0,0.0018998]
[1725066854992,1.07471295,59501.0,59500.0,0.1551998]
[1725066855186,1.07271295,59501.0,59500.0,0.1551998]
[1725066855381,1.07271295,59501.0,59500.0,0.16682256]
[1725066858569,1.07471295,59501.0,59500.0,0.16682256]
[1725066859878,0.95706795,59501.0,59500.0,0.16682256]
[1725066860529,1.07471295,59501.0,59500.0,0.16682256]
[1725066862739,1.06771295,59501.0,59500.0,0.16582256]
[1725066862951,1.04264894,59501.0,59500.0,0.16582256]
[1725066863189,1.04664894,59501.0,59500.0,0.16582256]
[1725066864294,1.04864894,59501.0,59500.0,0.16582256]
[1725066864506,1.04664894,59501.0,59500.0,0.16582256]
[1725066864927,1.04864894,59501.0,59500.0,0.16582256]
[1725066865158,1.04664894,59501.0,59500.0,0.16582256]
[1725066865796,1.04464894,59501.0,59500.0,0.16582256]
[1725066866014,1.04264894,59501.0,59500.0,0.16582256]
[1725066866633,1.04464894,59501.0,59500.0,0.16582256]
[1725066868223,1.04664894,59501.0,59500.0,0.16582256]
[1725066869717,0.95255097,59501.0,59500.0,0.16582256]
[1725066869950,1.04664894,59501.0,59500.0,0.16582256]
[1725066876567,0.44947067,59501.0,59500.0,0.35082256]
[1725066876778,0.45147067,59501.0,59500.0,0.35082256]
[1725066876988,0.68476067,59501.0,59500.0,0.35082256]
[1725066877215,0.77885864,59501.0,59500.0,0.35082256]
[1725066877685,0.78085864,59501.0,59500.0,0.35082256]
[1725066877902,0.80385864,59501.0,59500.0,0.35082256]
[1725066878757,0.80185864,59501.0,59500.0,0.35382256]
[1725066879201,0.56756864,59501.0,59500.0,0.35082256]
[1725066879415,0.56756864,59501.0,59500.0,0.35982256]
[1725066879849,0.56756864,59501.0,59500.0,0.36382256]
[1725066881348,0.56838664,59501.0,59500.0,0.36382256]
[1725066882259,0.56738664,59501.0,59500.0,0.35082256]
[1725066882687,0.56738664,59501.0,59500.0,0.35482256]
[1725066882898,0.56738664,59501.0,59500.0,0.35082256]
[1725066883328,0.56738664,59501.0,59500.0,0.35182256]
[1725066883949,0.56738664,59501.0,59500.0,0.35682256]
[1725066886051,0.80267664,59501.0,59500.0,0.35682256]
[1725066891673,1.03796664,59501.0,59500.0,0.01852256]
[1725066892357,1.03796664,59501.0,59500.0,0.01752256]
[1725066892546,0.96103065,59501.0,59500.0,0.01752256]
[1725066892791,0.96103065,59501.0,59500.0,0.01252256]
[1725066892792,0.96303065,59501.0,59500.0,0.01252256]
[1725066893213,0.96103065,59501.0,59500.0,0.01252256]
[1725066894273,0.86958565,59501.0,59490.0,0.05052103]
[1725066894519,0.002,59488.0,59487.0,0.05052103]
[1725066894745,0.002,59488.0,59485.0,0.25468154]
[1725066894746,0.119672,59487.0,59486.0,0.05052103]
[1725066894989,0.82990988,59487.0,59486.0,0.20572103]
[1725066895201,0.82990988,59487.0,59486.0,0.1552]
[1725066895202,0.85290988,59487.0,59486.0,0.1552]
[1725066896491,0.85290988,59487.0,59486.0,0.1682]
[1725066896492,0.85390988,59487.0,59486.0,0.1682]
[1725066896916,0.95390988,59487.0,59486.0,0.013]
[1725066897132,1.19663316,59487.0,59486.0,0.013]
[1725066898007,1.19663316,59487.0,59486.0,0.022]
[1725066898008,1.19763316,59487.0,59486.0,0.022]
[1725066898484,1.19663316,59487.0,59486.0,0.013]
[1725066898691,0.823735,59485.0,59484.0,0.0008998]
[1725066898907,1.04283297,59485.0,59484.0,0.0008998]
[1725066899974,1.04883297,59485.0,59484.0,0.0018998]
[1725066901465,1.04883297,59485.0,59484.0,0.0028998]
[1725066901466,1.05683297,59485.0,59484.0,0.0028998]
[1725066902485,1.26773297,59485.0,59484.0,0.0028998]
[1725066903102,1.25973297,59485.0,59484.0,0.0018998]
[1725066903312,1.25373297,59485.0,59484.0,0.0008998]
[1725066903730,1.25373297,59485.0,59484.0,0.0018998]
[1725066903937,1.25973297,59485.0,59484.0,0.0018998]
[1725066904145,6.09287497,59485.0,59484.0,0.0018998]
[1725066904370,1.54800923,59485.0,59484.0,0.0018998]
[1725066904576,6.14579823,59485.0,59484.0,0.0018998]
[1725066904792,0.825861,59476.0,59475.0,0.0008998]
[1725066905014,1.34004797,59476.0,59475.0,0.0008998]
[1725066905279,0.82597,59468.0,59467.0,0.1]
[1725066905506,1.27229,59468.0,59467.0,0.1]
[1725066905735,1.39529,59468.0,59467.0,0.1]
[1725066906023,1.48938797,59468.0,59467.0,0.1]
[1725066906457,6.08717697,59468.0,59467.0,0.1]
[1725066906672,5.22738797,59468.0,59467.0,0.1]
[1725066906892,5.22738797,59468.0,59467.0,0.101]
[1725066906893,4.51476993,59468.0,59467.0,0.101]
[1725066907176,4.51476993,59468.0,59459.0,0.0008998]
[1725066907177,0.826082,59460.0,59459.0,0.0008998]
[1725066907395,1.04317997,59460.0,59459.0,0.0008998]
[1725066908275,1.06956515,59460.0,59459.0,0.0008998]
[1725066909410,1.07256515,59460.0,59459.0,0.0008998]
[1725066909647,1.07356515,59460.0,59459.0,0.0008998]
[1725066910047,1.07056515,59460.0,59459.0,0.0008998]
[1725066910250,1.07256515,59460.0,59459.0,0.0008998]
[1725066910465,1.08916483,59460.0,59459.0,0.0008998]
[1725066910684,1.08716483,59460.0,59459.0,0.0008998]
[1725066910902,1.08716483,59460.0,59459.0,0.0018998]
[1725066910903,1.09316483,59460.0,59459.0,0.0018998]
[1725066911335,1.09816483,59460.0,59459.0,0.0018998]
[1725066911956,1.09316483,59460.0,59459.0,0.0018998]
[1725066912183,1.08716483,59460.0,59459.0,0.0008998]
[1725066912392,1.09716483,59460.0,59459.0,0.0018998]
[1725066912844,1.08875912,59460.0,59459.0,0.0008998]
[1725066913072,1.09375912,59460.0,59459.0,0.0008998]
[1725066913303,1.09175912,59460.0,59459.0,0.0008998]
[1725066913579,1.10531539,59460.0,59459.0,0.0018998]
[1725066913779,1.09931539,59460.0,59459.0,0.0008998]
[1725066914201,1.10131539,59460.0,59459.0,0.0008998]
[1725066914647,1.33676739,59460.0,59459.0,0.0008998]
[1725066914866,1.55036739,59460.0,59459.0,0.0008998]
[1725066915286,5.95836739,59460.0,59459.0,0.0008998]
[1725066915497,6.14315639,59460.0,59459.0,0.0008998]
[1725066915937,6.00291903,59460.0,59459.0,0.0008998]
[1725066916376,0.002,59446.0,59444.0,0.1486]
[1725066916602,0.002,59446.0,59440.0,0.008998]
[1725066916603,0.590767,59446.0,59440.0,0.008998]
[1725066916812,0.826274,59446.0,59441.0,0.1486]
[1725066917053,1.184781,59446.0,59441.0,0.1486]
[1725066917268,1.21117264,59446.0,59441.0,0.1486]
[1725066917959,0.82633,59442.0,59441.0,0.1486]
[1725066918185,1.04342797,59442.0,59441.0,0.1486]
[1725066918409,1.04342797,59442.0,59441.0,0.15961243]
[1725066918624,1.04342797,59442.0,59441.0,0.1486]
[1725066919694,1.04742797,59442.0,59441.0,0.1486]
[1725066920152,1.04942797,59442.0,59441.0,0.1486]
[1725066921019,0.002,59439.0,59437.0,0.008998]
[1725066921244,0.09609797,59439.0,59437.0,0.008998]
[1725066921456,0.09609797,59439.0,59438.0,0.02003154]
[1725066921457,0.10030449,59439.0,59438.0,0.02003154]
[1725066921659,0.22330449,59439.0,59438.0,0.008998]
[1725066921863,0.24969915,59439.0,59438.0,0.008998]
[1725066922064,1.07407115,59439.0,59438.0,0.008998]
[1725066922301,1.07507115,59439.0,59438.0,0.008998]
[1725066922514,1.07507115,59439.0,59438.0,0.010998]
[1725066923782,1.07507115,59439.0,59438.0,0.008998]
[1725066923989,1.07407115,59439.0,59438.0,0.008998]
[1725066924405,1.07607115,59439.0,59438.0,0.008998]
[1725066924851,1.07407115,59439.0,59438.0,0.008998]
[1725066925288,1.07607115,59439.0,59438.0,0.008998]
[1725066925917,1.09367083,59439.0,59438.0,0.008998]
[1725066929008,0.85813583,59439.0,59438.0,0.339298]
[1725066929216,0.85392931,59439.0,59438.0,0.339298]
[1725066929438,0.85392931,59439.0,59438.0,0.34739549]
[1725066930920,0.14599434,59439.0,59438.0,0.34739549]
[1725066931165,0.1,59440.0,59439.0,0.3303]
[1725066931380,0.002,59442.0,59440.0,0.1416]
[1725066931589,0.44937997,59443.0,59440.0,0.1416]
[1725066931801,0.002,59445.0,59441.0,0.14968342]
[1725066932020,0.33042597,59446.0,59441.0,0.92720042]
[1725066932021,0.02639261,59442.0,59441.0,0.92720042]
[1725066932241,0.117738,59454.0,59447.0,0.1416]
[1725066932493,0.50540786,59468.0,59451.0,0.3303]
[1725066932494,0.00420543,59453.0,59451.0,0.3303]
[1725066932781,0.11774,59453.0,59452.0,0.1416]
[1725066932984,0.11774,59453.0,59452.0,0.14963183]
[1725066933645,0.21774,59453.0,59452.0,0.14963183]
[1725066933865,0.24512934,59453.0,59452.0,0.14963183]
[1725066934088,0.24512934,59453.0,59452.0,0.14663183]
[1725066934320,0.12738934,59453.0,59452.0,0.14663183]
[1725066934543,0.15038934,59453.0,59452.0,0.14663183]
[1725066934753,0.05038934,59453.0,59452.0,0.14663183]
[1725066935174,0.05038934,59453.0,59452.0,0.15063183]
[1725066936023,0.05138934,59453.0,59452.0,0.15763183]
[1725066936871,0.40460934,59453.0,59452.0,0.15763183]
[1725066937076,0.50660934,59453.0,59452.0,0.15763183]
[1725066937939,0.27112934,59453.0,59452.0,0.15763183]
[1725066938158,0.26912934,59453.0,59452.0,0.15763183]
[1725066940781,0.12838934,59453.0,59452.0,0.27537383]
[1725066940988,0.12838934,59453.0,59452.0,0.46407383]
[1725066941220,0.02838934,59453.0,59452.0,0.69955783]
[1725066941447,0.02838934,59453.0,59452.0,0.46407383]
[1725066942326,0.02838934,59453.0,59452.0,0.69955783]
[1725066943252,0.02838934,59453.0,59452.0,0.46407383]
[1725066945199,0.02838934,59453.0,59452.0,0.69955783]
[1725066947514,0.02838934,59453.0,59452.0,0.70357374]
[1725066948244,0.02838934,59453.0,59452.0,1.62322933]
[1725066948476,0.000819,59455.0,59454.0,0.72989]
[1725066948681,1e-08,59455.0,59454.0,1.149066]
[1725066948915,1e-08,59455.0,59454.0,1.53476531]
[1725066949425,1e-08,59455.0,59454.0,0.83650359]
[1725066949637,1e-08,59455.0,59454.0,0.41247979]
[1725066949860,1e-08,59455.0,59454.0,0.58958408]
[1725066950080,0.235453,59460.0,59455.0,0.1412]
[1725066950308,0.117727,59460.0,59456.0,0.05038419]
[1725066950568,0.117727,59460.0,59456.0,0.01201962]
[1725066950961,0.117727,59460.0,59456.0,0.117733]
[1725066951190,0.117727,59460.0,59457.0,0.01201259]
[1725066953177,0.00420465,59462.0,59457.0,0.01201259]
[1725066953380,0.117719,59464.0,59460.0,0.1412]
[1725066953817,0.11772,59463.0,59461.0,0.01198446]
[1725066954724,0.117722,59462.0,59461.0,0.01198446]
[1725066955396,0.002,59464.0,59461.0,0.01198446]
[1725066955837,0.117722,59462.0,59461.0,0.01198446]
[1725066957638,0.14410418,59462.0,59461.0,0.01198446]
[1725066957853,0.14410418,59462.0,59461.0,0.01398446]
[1725066959003,0.02638218,59462.0,59461.0,0.01398446]
[1725066959224,0.02638218,59462.0,59461.0,0.15518446]
[1725066959892,0.14410418,59462.0,59461.0,0.15518446]
[1725066960542,0.02638218,59462.0,59461.0,0.15518446]
[1725066962028,0.02638218,59462.0,59461.0,0.61353761]
[1725066962275,0.02638218,59462.0,59461.0,0.84898561]
[1725066962474,0.02638218,59462.0,59461.0,1.08443361]
[1725066962748,0.02638218,59462.0,59461.0,0.92750446]
[1725066963651,0.02738218,59462.0,59461.0,0.93950446]
[1725066963884,0.02738218,59462.0,59461.0,0.93750446]
[1725066964110,0.02738218,59462.0,59461.0,0.35088446]
[1725066964312,0.117718,59464.0,59461.0,0.33688446]
[1725066964529,0.001,59462.0,59461.0,0.34888446]
[1725066964741,0.002,59462.0,59461.0,0.36288446]
[1725066964949,0.118722,59462.0,59461.0,0.33688446]
[1725066965368,0.119722,59462.0,59461.0,0.35088446]
[1725066965573,0.117722,59462.0,59461.0,0.33688446]
[1725066966424,0.118722,59462.0,59461.0,0.34788446]
[1725066967119,0.118722,59462.0,59461.0,0.35088446]
[1725066967305,0.001,59462.0,59461.0,0.35088446]
[1725066967541,0.001,59462.0,59461.0,0.34788446]
[1725066967721,0.002,59462.0,59461.0,0.36188446]
[1725066968640,0.002,59462.0,59461.0,0.36278536]
[1725066969530,0.357166,59462.0,59461.0,0.17908536]
[1725066969749,0.71561,59462.0,59461.0,0.03788536]
[1725066970175,0.480166,59462.0,59461.0,0.0259009]
[1725066970400,0.480166,59462.0,59461.0,0.1668009]
[1725066970645,0.001,59462.0,59461.0,0.4451249]
[1725066970851,0.001,59462.0,59461.0,0.69755736]
[1725066971130,0.000819,59464.0,59463.0,0.11772]
[1725066971347,0.000819,59464.0,59463.0,0.2705904]
[1725066971560,0.005,59487.0,59464.0,0.1409]
[1725066971768,0.235397,59474.0,59465.0,0.1409]
[1725066971980,0.117703,59472.0,59468.0,0.1409]
[1725066972195,0.117703,59472.0,59468.0,0.1399]
[1725066972483,0.117703,59472.0,59469.0,0.01192822]
[1725066972921,0.117703,59472.0,59467.0,0.117711]
[1725066973143,0.117703,59472.0,59470.0,0.01192119]
[1725066973354,0.117703,59472.0,59467.0,0.116711]
[1725066973570,0.02637859,59473.0,59471.0,0.01191416]
[1725066973800,0.02637859,59473.0,59467.0,0.116711]
[1725066973801,0.14407959,59473.0,59467.0,0.116711]
[1725066974006,0.1,59472.0,59467.0,0.116711]
[1725066974218,0.1,59472.0,59467.0,0.118711]
[1725066974424,0.1,59472.0,59470.0,0.004]
[1725066974640,0.217703,59472.0,59467.0,0.116711]
[1725066975070,0.217703,59472.0,59471.0,0.1449]
[1725066975693,0.1,59472.0,59471.0,0.1419]
[1725066975929,0.24407859,59473.0,59471.0,0.1419]
[1725066976979,0.12637859,59473.0,59471.0,0.1409]
[1725066977190,0.1,59472.0,59471.0,0.1409]
[1725066977656,0.235392,59476.0,59471.0,0.1439]
[1725066977900,0.117701,59473.0,59471.0,0.1409]
[1725066978101,0.001,59473.0,59471.0,0.1499]
[1725066978349,0.002,59473.0,59471.0,0.1609]
[1725066978571,0.002,59473.0,59471.0,0.1499]
[1725066979031,0.002,59473.0,59471.0,0.1579]
[1725066979274,0.002,59473.0,59472.0,0.90401]
[1725066979482,0.001,59473.0,59472.0,0.90401]
[1725066979936,0.001,59473.0,59472.0,0.433202]
[1725066980155,0.117689,59479.0,59474.0,0.117698]
[1725066980376,0.1,59478.0,59474.0,0.117698]
[1725066980596,0.1,59478.0,59474.0,0.116698]
[1725066980824,0.1,59478.0,59474.0,0.115698]
[1725066981043,0.1,59478.0,59472.0,0.561904]
[1725066981044,0.001,59473.0,59472.0,0.3395]
[1725066981463,0.001,59473.0,59472.0,0.3285]
[1725066981668,0.02637823,59473.0,59472.0,0.3155]
[1725066982342,0.14407823,59473.0,59472.0,0.3155]
[1725066982567,0.02637823,59473.0,59472.0,0.3155]
[1725066982812,0.02637823,59473.0,59472.0,0.668606]
[1725066983918,0.02737823,59473.0,59472.0,0.692606]
[1725066984121,0.117689,59479.0,59474.0,0.117697]
[1725066984338,0.117691,59478.0,59474.0,0.117697]
[1725066985393,0.117691,59478.0,59474.0,0.123697]
[1725066985612,0.117694,59476.0,59474.0,0.006]
[1725066985798,0.117693,59477.0,59474.0,0.006]
[1725066986454,0.117693,59477.0,59474.0,0.01]
[1725066986685,0.117693,59477.0,59474.0,0.004]
[1725066986894,0.117693,59477.0,59474.0,0.007]
[1725066987111,0.118693,59477.0,59474.0,0.014]
[1725066987343,0.118693,59477.0,59474.0,0.007]
[1725066987558,0.14507098,59477.0,59474.0,0.016]